bitfinex/quotes_ETHUSD_20210701
["timestamp","ask_amount","ask_price","bid_price","bid_amount"]
[1625181643241,7.10706,2110.2,2109.4,26.36707]
[1625181643242,9.47552,2110.6,2109.4,26.36707]
[1625181643341,9.47552,2110.6,2109.4,19.2597]
[1625181643494,23.5638399,2110.6,2109.4,14.2497]
[1625181643592,0.15,2110.5,2109.4,14.0997]
[1625181644331,7.10814,2110.0,2109.4,14.0997]
[1625181644432,7.10814,2110.0,2109.4,3.9621]
[1625181644588,0.15,2110.5,2109.9,0.05]
[1625181645234,0.15,2110.5,2109.9,3.2049]
[1625181646433,7.10757,2110.2,2109.9,3.2049]
[1625181647937,12.11757,2110.2,2109.9,3.2049]
[1625181648335,5.01,2110.2,2109.9,3.2049]
[1625181648577,0.15,2110.5,2109.9,3.2049]
[1625181649484,7.10757,2110.2,2109.9,3.2049]
[1625181651612,7.10757,2110.2,2109.9,0.05]
[1625181655737,11.15,2110.1,2109.5,7.10738]
[1625181656186,7.10752,2110.1,2109.5,7.10738]
[1625181658582,7.10752,2110.1,2109.4,0.15]
[1625181660407,7.10752,2110.1,2109.4,7.2576]
[1625181660560,7.10752,2110.1,2109.4,12.2676]
[1625181665808,9.70691,2110.2,2109.4,12.2676]
[1625181665910,7.10691,2110.2,2109.4,12.2676]
[1625181666006,7.10691,2110.2,2109.5,0.03283892]
[1625181666157,7.10691,2110.2,2109.5,4.467]
[1625181666450,7.10691,2110.2,2109.5,9.477]
[1625181667053,9.47634,2110.4,2109.5,9.477]
[1625181667158,7.10658,2110.3,2109.7,7.10666]
[1625181667353,7.10658,2110.3,2109.7,12.11666]
[1625181667756,7.21959551,2110.3,2109.7,12.11666]
[1625181670098,7.21959551,2110.3,2109.5,9.47554]
[1625181670202,12.22959551,2110.3,2109.2,9.47651]
[1625181670305,12.22959551,2110.3,2108.9,0.15]
[1625181670451,7.10877,2109.7,2108.9,9.62768]
[1625181670603,10.35697,2109.7,2108.9,9.62768]
[1625181670991,0.15614806,2109.6,2108.8,11.0187]
[1625181671073,0.10614806,2109.6,2108.8,11.0187]
[1625181671175,8.46760725,2109.7,2108.8,11.0187]
[1625181671274,8.47423062,2109.7,2108.8,11.0187]
[1625181671676,8.46760725,2109.7,2108.8,11.0187]
[1625181671776,8.4082,2109.7,2108.8,11.0187]
[1625181671928,8.4082,2109.7,2108.3,0.15]
[1625181671929,7.11079,2109.2,2108.3,0.15]
[1625181672026,2.9,2108.9,2108.3,0.15]
[1625181672523,2.9,2108.9,2108.4,0.1]
[1625181673125,3.01308514,2108.9,2108.3,0.15]
[1625181673277,3.01308514,2108.9,2108.2,9.47856]
[1625181673472,10.12410514,2108.9,2108.2,9.47856]
[1625181673771,10.12410514,2108.9,2108.2,12.38960079]
[1625181674025,3.01308514,2108.9,2108.2,12.38960079]
[1625181674221,3.01308514,2108.9,2108.3,0.14]
[1625181674424,3.01308514,2108.9,2108.4,0.15]
[1625181674624,3.01308514,2108.9,2108.4,5.57520181]
[1625181674725,0.11308514,2108.9,2108.5,0.2]
[1625181674874,3.8,2109.3,2108.5,0.2]
[1625181675123,3.8,2109.3,2108.4,18.58520181]
[1625181675225,3.8,2109.3,2108.6,2.91104079]
[1625181675524,3.8,2109.3,2108.4,5.16]
[1625181675725,10.90974,2109.3,2108.4,0.15]
[1625181675821,10.90974,2109.3,2108.4,5.16]
[1625181676322,10.90974,2109.3,2108.4,0.15]
[1625181676673,10.90974,2109.3,2108.5,0.06]
[1625181676771,10.90974,2109.3,2108.4,0.15]
[1625181676874,10.90974,2109.3,2108.5,7.11007]
[1625181677074,10.90974,2109.3,2108.5,12.12007]
[1625181677324,10.90974,2109.3,2108.5,15.03111079]
[1625181677573,10.90974,2109.3,2108.5,7.92104079]
[1625181679175,11.30974,2109.3,2108.5,7.92104079]
[1625181679427,3.55585,2109.2,2108.5,7.92104079]
[1625181679526,16.3416886,2109.2,2108.5,2.91104079]
[1625181679778,3.55612,2109.0,2108.0,10.9652]
[1625181680053,7.96856,2109.0,2107.7,13.86274079]
[1625181680151,3.7064107,2108.9,2107.7,2.91104079]
[1625181680299,7.11361,2108.4,2107.5,0.32607819]
[1625181680445,4.2,2108.0,2107.2,0.00951363]
[1625181680550,4.25597336,2108.0,2107.2,0.00951363]
[1625181680644,4.2,2108.0,2107.2,0.00951363]
[1625181681397,10.50295,2107.7,2107.2,0.00951363]
[1625181683398,4.2,2108.0,2107.2,2.92055442]
[1625181683547,4.2,2108.0,2107.3,0.16]
[1625181683845,4.2,2108.0,2107.2,5.43471544]
[1625181683944,4.2,2108.0,2107.2,5.38471544]
[1625181684396,11.31486,2108.0,2107.2,5.38471544]
[1625181684720,11.31486,2108.0,2107.2,5.33471544]
[1625181685922,4.2,2108.0,2107.2,5.33471544]
[1625181686822,10.2043,2108.3,2107.2,10.34471544]
[1625181686952,10.5328,2108.4,2107.2,17.08891544]
[1625181687050,7.11411,2108.2,2107.3,7.12492924]
[1625181687151,7.11411,2108.2,2107.3,7.11386]
[1625181687250,7.11411,2108.2,2107.3,12.12386]
[1625181687349,7.11411,2108.2,2107.3,5.01]
[1625181687551,7.11411,2108.2,2107.2,18.34471544]
[1625181687701,7.11411,2108.2,2107.3,2.90350026]
[1625181687948,7.11411,2108.2,2107.3,7.91350026]
[1625181689509,12.12411,2108.2,2107.3,2.90350026]
[1625181689604,7.26411,2108.2,2107.3,2.90350026]
[1625181689756,12.27411,2108.2,2107.1,0.2]
[1625181689853,7.26411,2108.2,2107.1,0.2]
[1625181689953,12.27411,2108.2,2107.1,0.2]
[1625181691056,12.27411,2108.2,2107.1,3.10350026]
[1625181691274,12.27411,2108.2,2107.1,8.11350026]
[1625181691430,12.27411,2108.2,2107.1,3.10350026]
[1625181691522,12.27411,2108.2,2107.1,8.11350026]
[1625181691828,7.26411,2108.2,2107.1,8.11350026]
[1625181691928,7.11411,2108.2,2107.1,15.22760026]
[1625181692026,7.11411,2108.2,2107.2,3.826]
[1625181692177,7.11411,2108.2,2107.2,3.746]
[1625181692327,7.11411,2108.2,2107.2,8.756]
[1625181692424,7.11411,2108.2,2107.3,2.90350026]
[1625181692527,7.11411,2108.2,2107.3,7.91350026]
[1625181694884,12.12411,2108.2,2107.3,2.90350026]
[1625181695585,12.12411,2108.2,2107.3,7.91350026]
[1625181695684,7.11411,2108.2,2107.3,7.91350026]
[1625181695995,12.12411,2108.2,2107.3,7.91350026]
[1625181696096,7.11411,2108.2,2107.3,7.91350026]
[1625181696197,12.12411,2108.2,2107.3,2.90350026]
[1625181696598,7.11411,2108.2,2107.3,7.91350026]
[1625181697002,7.11411,2108.2,2107.3,7.81350026]
[1625181698637,7.11411,2108.2,2107.4,0.15]
[1625181700594,7.11411,2108.2,2107.4,5.0192]
[1625181700699,7.11411,2108.2,2107.4,10.0292]
[1625181700794,7.11411,2108.2,2107.4,5.0192]
[1625181700894,7.11411,2108.2,2107.4,10.0292]
[1625181702182,7.11411,2108.2,2107.4,17.14279]
[1625181702287,21.0811,2108.5,2107.4,25.14279]
[1625181702386,21.0811,2108.5,2107.5,0.10225142]
[1625181702485,21.0811,2108.5,2107.5,0.20225142]
[1625181702627,21.0811,2108.5,2107.6,0.15]
[1625181703325,7.11318,2108.2,2107.6,0.15]
[1625181703973,21.0811,2108.5,2107.6,0.15]
[1625181705464,7.1128,2108.3,2107.6,7.26268]
[1625181705617,7.1128,2108.3,2107.6,12.27268]
[1625181706063,7.1128,2108.3,2107.7,0.08]
[1625181706568,7.1128,2108.3,2107.4,15.87035041]
[1625181706668,10.9936,2108.3,2107.4,5.16]
[1625181706866,10.9936,2108.3,2107.3,13.01]
[1625181707562,10.9936,2108.3,2107.3,5.01]
[1625181707814,10.9936,2108.3,2107.2,15.2832]
[1625181708864,16.0036,2108.3,2107.2,10.2732]
[1625181709532,3.55736,2108.2,2107.2,10.2732]
[1625181709736,8.56736,2108.2,2107.2,10.2732]
[1625181710336,7.11497,2107.7,2107.2,10.2732]
[1625181710585,7.11497,2107.7,2107.2,5.01]
[1625181710738,3.55736,2108.2,2107.3,0.16]
[1625181710834,3.55736,2108.2,2107.3,4.2332]
[1625181711084,3.55736,2108.2,2107.3,9.2432]
[1625181711284,3.55736,2108.2,2107.3,9.0832]
[1625181711486,7.11408,2107.8,2107.3,9.0832]
[1625181711624,7.11408,2107.8,2107.3,17.0832]
[1625181711773,7.11408,2107.8,2107.4,0.15]
[1625181711973,7.11408,2107.8,2107.5,0.06]
[1625181712574,3.55701,2107.7,2107.5,0.06]
[1625181712675,3.55701,2107.7,2107.1,0.35]
[1625181712873,3.55701,2107.7,2107.1,0.2]
[1625181713426,3.5578216,2107.5,2107.1,0.2]
[1625181713527,3.55791,2107.4,2107.1,0.2]
[1625181713625,7.11594,2107.3,2107.1,0.2]
[1625181713880,4.30711427,2107.3,2107.1,2.88535041]
[1625181713984,4.30711427,2107.3,2107.1,3.03535041]
[1625181714074,4.30711427,2107.3,2107.1,8.04535041]
[1625181714530,4.30711427,2107.3,2107.1,7.89535041]
[1625181715084,7.11512,2107.7,2107.1,7.89535041]
[1625181716282,7.11564,2107.4,2107.1,7.89535041]
[1625181716381,7.11564,2107.4,2107.1,7.64535041]
[1625181717642,21.0118,2108.3,2107.1,7.64535041]
[1625181717788,3.55819,2107.4,2107.1,7.64535041]
[1625181718037,4.7442,2107.8,2107.1,7.64535041]
[1625181719131,3.55798,2107.7,2107.1,7.64535041]
[1625181719231,9.48784,2107.3,2107.1,7.64535041]
[1625181722155,4.7442,2107.8,2107.1,7.64535041]
[1625181722406,3.5581444,2107.6,2107.1,7.64535041]
[1625181722556,3.5581444,2107.6,2107.2,0.08]
[1625181723145,13.04592,2107.4,2107.2,0.08]
[1625181723246,3.55798,2107.4,2107.2,0.08]
[1625181723342,3.55798,2107.4,2107.1,7.64535041]
[1625181724295,7.11592,2107.3,2107.1,7.64535041]
[1625181729518,7.11592,2107.3,2107.2,14.0]
[1625181729672,14.9088,2108.3,2107.2,14.33]
[1625181729760,22.1047,2108.4,2107.2,14.34639798]
[1625181729861,22.1047,2108.4,2107.2,19.35639798]
[1625181730009,22.1047,2108.4,2107.3,2.68118374]
[1625181730109,22.1047,2108.4,2107.4,0.11268494]
[1625181730213,25.6614,2108.4,2107.4,0.11268494]
[1625181730311,25.6614,2108.4,2107.4,0.26268494]
[1625181730409,25.6614,2108.4,2107.4,2.77577883]
[1625181730512,22.1047,2108.4,2107.5,2.68118374]
[1625181730613,22.1047,2108.4,2107.9,7.11282]
[1625181730764,11.0319,2108.4,2107.9,7.11282]
[1625181730861,0.53958692,2108.7,2107.9,7.11282]
[1625181730862,0.53958692,2108.7,2108.0,0.17996554]
[1625181730966,0.826,2109.0,2108.0,0.27996554]
[1625181731112,0.826,2109.0,2108.0,5.10056554]
[1625181731265,0.826,2109.0,2108.0,5.00056554]
[1625181731359,0.826,2109.0,2108.0,10.01056554]
[1625181731659,0.826,2109.0,2108.0,23.20484317]
[1625181731919,0.53958692,2109.1,2108.4,7.1115]
[1625181732072,18.30968692,2109.2,2108.5,0.15]
[1625181732217,18.30968692,2109.2,2108.5,3.4096]
[1625181732411,18.30968692,2109.2,2108.5,3.3596]
[1625181733214,18.30968692,2109.2,2108.8,7.11137]
[1625181733464,17.7701,2109.2,2108.8,7.11137]
[1625181733866,10.9001,2109.2,2108.8,7.11137]
[1625181735314,10.9001,2109.2,2108.8,7.06137]
[1625181735865,10.9001,2109.2,2108.8,12.07137]
[1625181736215,10.9001,2109.2,2108.8,7.06137]
[1625181737265,10.9001,2109.2,2108.7,10.43502]
[1625181737369,10.9001,2109.2,2108.5,0.1]
[1625181737473,10.9001,2109.2,2108.5,5.11]
[1625181737767,10.9001,2109.2,2108.5,0.1]
[1625181738065,14.85,2109.1,2108.3,21.592]
[1625181738217,10.9001,2109.2,2108.6,7.11155]
[1625181739275,10.9001,2109.2,2108.6,7.06155]
[1625181740278,11.0131712,2109.2,2108.6,7.06155]
[1625181741370,34.65,2109.0,2108.5,9.48201]
[1625181741476,0.12879853,2108.9,2107.7,11.8526]
[1625181741619,4.20589853,2108.9,2107.7,11.8526]
[1625181741723,0.15,2108.8,2107.7,11.8526]
[1625181741822,0.10794504,2108.7,2107.7,11.8526]
[1625181742020,0.15,2108.6,2107.7,11.8526]
[1625181742170,0.10825071,2108.5,2107.4,11.0697]
[1625181742476,0.10825071,2108.5,2107.1,0.15]
[1625181742579,0.15,2108.4,2107.0,10.0138]
[1625181742670,7.1162,2107.7,2107.0,10.0138]
[1625181742771,7.1162,2107.7,2106.9,25.0600834]
[1625181742919,7.1162,2107.7,2106.9,7.5146834]
[1625181743201,7.1162,2107.7,2106.9,7.4546834]
[1625181743296,10.5168,2107.7,2106.9,7.4546834]
[1625181743651,10.5168,2107.7,2106.9,0.3385934]
[1625181743806,7.1176,2107.3,2106.9,0.3385934]
[1625181745814,7.23076774,2107.3,2106.9,0.3385934]
[1625181747623,0.11316774,2107.3,2106.9,0.3385934]
[1625181747775,0.11316774,2107.3,2107.0,0.04]
[1625181747923,0.11316774,2107.3,2107.0,3.7292]
[1625181748025,0.11316774,2107.3,2107.0,3.8792]
[1625181748122,10.5539,2108.2,2107.0,3.8392]
[1625181748223,10.5539,2108.2,2107.0,8.8492]
[1625181748324,10.5539,2108.2,2107.0,3.8392]
[1625181748572,10.5539,2108.2,2107.0,3.6892]
[1625181748672,0.15,2108.1,2107.0,3.6892]
[1625181749173,7.11614,2107.9,2107.0,10.80534]
[1625181749273,7.11614,2107.9,2107.0,15.81534]
[1625181749372,7.11614,2107.9,2107.0,15.96534]
[1625181749992,7.11614,2107.9,2107.0,16.8492]
[1625181750896,7.11525,2108.1,2107.2,7.11525]
[1625181751094,7.11525,2108.1,2107.2,12.12525]
[1625181751197,7.11525,2108.1,2107.2,20.12525]
[1625181751948,7.11525,2108.1,2107.3,0.15]
[1625181752050,7.11525,2108.1,2107.3,7.26498]
[1625181752328,7.11525,2108.1,2107.4,0.06]
[1625181752578,7.11525,2108.1,2107.3,13.28668]
[1625181753779,10.3325,2108.3,2107.3,13.28668]
[1625181754128,10.3325,2108.3,2107.3,13.30368825]
[1625181754330,10.3325,2108.3,2107.3,13.28668]
[1625181754487,17.44743,2108.3,2107.4,7.11507]
[1625181754591,20.55119,2108.7,2107.4,12.12507]
[1625181754689,11.0643,2108.7,2107.5,0.23]
[1625181754829,11.0643,2108.7,2107.6,0.04]
[1625181754932,11.0643,2108.7,2107.6,0.04738935]
[1625181755083,11.0643,2108.7,2107.7,0.15]
[1625181755183,10.7418,2108.8,2107.7,0.1657377]
[1625181755376,10.7418,2108.8,2107.7,2.66216492]
[1625181755479,10.7418,2108.8,2108.1,7.11259]
[1625181755579,10.7418,2108.8,2108.1,12.12259]
[1625181755728,10.7418,2108.8,2108.1,16.79009]
[1625181755830,10.7418,2108.8,2108.2,0.15]
[1625181756426,10.7418,2108.8,2108.2,2.64642722]
[1625181756527,10.7418,2108.8,2108.2,7.65642722]
[1625181756870,0.53958692,2109.1,2108.4,7.11175]
[1625181757070,0.53958692,2109.1,2108.5,0.15]
[1625181757224,0.53958692,2109.1,2108.5,2.64642722]
[1625181757322,0.53958692,2109.1,2108.5,4.98934636]
[1625181757421,0.53958692,2109.1,2108.5,9.99934636]
[1625181757973,7.11037,2109.8,2108.9,7.10949]
[1625181758074,7.11037,2109.8,2108.9,17.07539]
[1625181758171,7.11037,2109.8,2109.0,0.15]
[1625181758474,31.1208,2109.9,2109.0,0.15]
[1625181758873,21.0476,2109.9,2109.0,0.15]
[1625181759078,21.0476,2109.9,2109.0,2.60076056]
[1625181759182,21.0476,2109.9,2109.0,9.70997056]
[1625181759328,20.9976,2109.9,2109.0,14.71997056]
[1625181759628,20.9976,2109.9,2109.0,12.26921]
[1625181759727,20.9976,2109.9,2109.0,13.16]
[1625181759879,0.53958692,2109.8,2109.0,5.16]
[1625181760280,7.64952692,2109.8,2109.0,0.15]
[1625181760632,7.64952692,2109.8,2108.4,12.0624]
[1625181760730,7.64952692,2109.8,2108.8,0.15]
[1625181760881,12.65952692,2109.8,2108.8,0.15]
[1625181760981,7.64952692,2109.8,2108.8,0.15]
[1625181761219,7.10994,2109.8,2108.8,0.15]
[1625181762032,13.28894,2109.8,2108.8,4.8286]
[1625181762233,7.10994,2109.8,2108.8,9.8386]
[1625181762333,34.7,2109.7,2108.3,9.47974]
[1625181762488,35.0,2109.6,2107.6,0.13902058]
[1625181762584,0.12015215,2109.5,2107.9,0.15]
[1625181762691,7.11334,2108.8,2107.5,11.85075]
[1625181762784,7.11334,2108.8,2107.6,0.15]
[1625181762985,9.63393,2109.1,2107.7,0.04]
[1625181763089,10.05566882,2109.2,2107.7,0.04]
[1625181763238,9.9928,2109.2,2107.8,0.15]
[1625181763435,9.9928,2109.2,2107.9,0.1]
[1625181763585,9.9928,2109.2,2108.0,0.15]
[1625181763780,9.9928,2109.2,2108.4,7.11108]
[1625181763882,7.11178,2109.3,2108.4,7.11108]
[1625181764229,7.11178,2109.3,2108.4,5.01]
[1625181764329,7.11178,2109.3,2108.2,0.15]
[1625181764579,11.0084,2109.5,2108.2,0.15]
[1625181764779,11.0084,2109.5,2108.2,4.9738]
[1625181764780,16.0184,2109.5,2108.2,4.9738]
[1625181764931,16.0184,2109.5,2108.2,9.9838]
[1625181765633,23.12963,2109.5,2108.2,17.09572]
[1625181768132,23.12963,2109.5,2108.2,11.93572]
[1625181768236,0.21624427,2109.4,2108.2,4.8238]
[1625181768335,4.54844427,2109.4,2108.1,9.48172]
[1625181768582,9.3922,2109.4,2108.1,9.48172]
[1625181768734,9.44190914,2109.4,2108.1,9.48172]
[1625181768882,9.44190914,2109.4,2108.1,9.38172]
[1625181769281,9.3922,2109.4,2108.1,9.38172]
[1625181769381,9.44169899,2109.4,2108.1,9.38172]
[1625181769482,9.3922,2109.4,2108.1,9.38172]
[1625181769681,9.4385886,2109.4,2108.1,22.39172]
[1625181769782,9.3922,2109.4,2108.1,22.39172]
[1625181770084,9.3922,2109.4,2108.1,14.39172]
[1625181770296,9.48367,2109.3,2108.2,0.15]
[1625181770396,11.85571,2109.8,2108.5,3.6]
[1625181770552,0.15,2109.9,2108.3,0.11771155]
[1625181770643,0.15,2109.9,2109.7,3.6]
[1625181770844,0.15,2109.9,2109.8,3.75]
[1625181771092,0.15,2109.9,2109.8,8.76]
[1625181771241,0.23914979,2110.9,2109.8,8.76]
[1625181771343,0.23914979,2110.9,2109.8,5.16]
[1625181771443,0.23914979,2110.9,2110.5,3.6]
[1625181771539,0.23914979,2110.9,2110.5,9.1049]
[1625181771647,0.23914979,2110.9,2110.8,3.6]
[1625181771648,0.11371735,2110.9,2110.8,3.6]
[1625181771840,0.11371735,2110.9,2110.8,3.75]
[1625181772143,6.87,2111.2,2110.8,3.75]
[1625181772144,4.97701735,2111.2,2110.8,3.75]
[1625181772293,4.97701735,2111.2,2111.1,3.6]
[1625181772390,4.97701735,2111.2,2111.1,7.7873]
[1625181772542,4.97701735,2111.2,2111.1,7.9373]
[1625181772690,4.97701735,2111.2,2111.1,4.3373]
[1625181772789,4.97701735,2111.2,2111.0,2.3749]
[1625181772896,15.0,2111.6,2110.9,0.46855993]
[1625181772987,0.0121126,2112.0,2110.9,4.7008]
[1625181773489,0.0121126,2112.0,2111.0,0.33793578]
[1625181773895,20.0,2111.8,2111.0,0.33793578]
[1625181773988,15.0,2111.7,2111.0,0.33793578]
[1625181774094,20.0121126,2112.2,2111.0,0.33793578]
[1625181774189,0.0121126,2112.2,2111.0,5.10023578]
[1625181774492,0.0121126,2112.0,2111.0,5.10023578]
[1625181774887,15.0121126,2112.2,2111.0,5.10023578]
[1625181775135,15.0121126,2112.2,2110.9,3.2832]
[1625181775136,52.1159826,2112.2,2111.1,0.33791978]
[1625181775283,0.15,2112.0,2111.1,0.33791978]
[1625181775485,0.15,2112.0,2111.1,5.25531978]
[1625181776035,0.15,2112.0,2111.2,0.33790377]
[1625181776188,0.0121126,2112.1,2111.2,0.33790377]
[1625181776435,7.10456,2112.0,2111.2,0.33790377]
[1625181777081,0.15,2111.9,2111.2,0.33790377]
[1625181777083,20.15,2111.9,2111.2,0.33790377]
[1625181777174,15.0,2111.8,2111.2,0.33790377]
[1625181777376,20.01,2111.8,2111.2,0.33790377]
[1625181777575,7.10488,2111.8,2111.2,0.33790377]
[1625181777975,22.10488,2111.8,2111.2,0.33790377]
[1625181778074,22.10488,2111.8,2111.2,3.77e-06]
[1625181778173,0.1,2111.7,2111.2,3.77e-06]
[1625181778527,22.10488,2111.8,2111.2,3.77e-06]
[1625181778677,0.15,2111.9,2111.2,3.77e-06]
[1625181782273,0.15,2111.8,2111.2,3.77e-06]
[1625181782372,3.6232,2111.8,2111.2,3.77e-06]
[1625181782476,20.0,2111.6,2111.2,3.77e-06]
[1625181782572,15.0,2111.5,2111.2,3.77e-06]
[1625181782720,15.0,2111.5,2109.7,20.29827]
[1625181782721,15.15,2111.5,2109.7,20.14827]
[1625181782820,15.15,2111.5,2110.1,0.26456206]
[1625181782821,0.25032592,2111.4,2110.1,0.26456206]
[1625181782974,10.56118,2111.0,2110.1,0.26456206]
[1625181783073,15.08094778,2110.9,2110.1,0.26456206]
[1625181783172,15.23094778,2110.9,2110.1,0.26456206]
[1625181783272,20.24094778,2110.9,2110.1,0.26456206]
[1625181783372,28.19094778,2110.9,2110.1,0.26456206]
[1625181783624,20.19094778,2110.9,2110.7,0.00657593]
[1625181783724,20.19094778,2110.9,2110.2,0.27136299]
[1625181783875,20.19094778,2110.9,2109.2,0.00756388]
[1625181783876,50.1269026,2110.8,2109.2,0.00756388]
[1625181784026,0.10121181,2110.2,2109.2,0.00756388]
[1625181784123,15.11384372,2110.2,2109.2,0.00756388]
[1625181784225,0.26384372,2110.2,2109.2,0.00756388]
[1625181784321,5.26121181,2110.2,2109.2,0.00756388]
[1625181784421,0.25121181,2110.2,2109.2,0.00756388]
[1625181784522,5.26121181,2110.2,2109.2,0.00756388]
[1625181784622,0.25121181,2110.2,2109.2,0.00756388]
[1625181784726,5.16,2110.2,2109.2,0.00756388]
[1625181784926,0.15,2110.2,2109.2,0.00756388]
[1625181785025,5.16,2110.2,2109.2,0.00756388]
[1625181785129,5.16713487,2110.2,2109.2,0.00756388]
[1625181785224,0.15713487,2110.2,2109.2,0.00756388]
[1625181785324,5.16713487,2110.2,2109.2,0.00756388]
[1625181785777,0.15713487,2110.2,2109.2,0.00756388]
[1625181785876,15.0,2110.1,2109.2,0.00756388]
[1625181786068,20.01,2110.1,2109.2,0.00756388]
[1625181787621,5.01,2110.1,2109.2,0.00756388]
[1625181787826,5.01713487,2110.2,2109.2,0.00756388]
[1625181788374,0.00713487,2110.2,2109.2,0.00756388]
[1625181788455,5.01713487,2110.2,2109.3,7.10824]
[1625181788555,0.00713487,2110.2,2109.3,7.10824]
[1625181788655,5.01713487,2110.2,2109.3,7.10824]
[1625181788905,0.00713487,2110.2,2109.3,7.10824]
[1625181789005,5.01713487,2110.2,2109.3,7.10824]
[1625181789109,0.00713487,2110.2,2109.3,7.10824]
[1625181789208,5.01713487,2110.2,2109.3,7.10824]
[1625181789407,0.00713487,2110.2,2109.3,7.10824]
[1625181789558,5.01713487,2110.2,2109.3,7.10824]
[1625181789660,0.00713487,2110.2,2109.2,0.00756388]
[1625181789760,5.01713487,2110.2,2109.2,0.00756388]
[1625181789862,8.87883487,2110.2,2109.2,0.00756388]
[1625181790008,3.86883487,2110.2,2109.2,0.00756388]
[1625181790110,8.87883487,2110.2,2109.2,0.00756388]
[1625181791521,7.1098,2110.1,2109.2,0.00756388]
[1625181791625,11.52603487,2110.2,2109.2,0.00756388]
[1625181791770,5.01,2110.1,2109.2,0.00756388]
[1625181791871,11.52603487,2110.2,2109.2,0.00756388]
[1625181792369,0.11303595,2110.0,2109.2,0.00756388]
[1625181792887,0.06303595,2110.0,2109.2,0.00756388]
[1625181797927,0.00713487,2110.2,2109.2,0.00756388]
[1625181798278,0.15,2110.1,2109.2,0.00756388]
[1625181800320,7.25907,2110.1,2109.2,0.00756388]
[1625181800516,12.26907,2110.1,2109.2,0.00756388]
[1625181801522,5.16,2110.1,2109.3,3.5547836]
[1625181801775,0.15,2110.1,2109.3,3.5547836]
[1625181801920,5.16,2110.1,2109.3,3.5547836]
[1625181802222,15.15,2110.1,2109.3,3.5547836]
[1625181802317,20.16,2110.1,2109.3,3.5547836]
[1625181802769,20.16,2110.1,2109.5,7.11027]
[1625181803269,5.16,2110.1,2109.5,7.11027]
[1625181803722,0.15,2110.1,2109.5,7.11027]
[1625181803820,5.16,2110.1,2109.5,7.11027]
[1625181804020,0.15,2110.1,2109.5,7.11027]
[1625181804169,5.16,2110.1,2109.5,7.11027]
[1625181804269,0.15,2110.1,2109.5,7.11027]
[1625181804369,5.16,2110.1,2109.5,7.11027]
[1625181804770,0.15,2110.1,2109.5,7.11027]
[1625181804870,5.16,2110.1,2109.5,7.11027]
[1625181805272,0.15,2110.1,2109.5,7.11027]
[1625181805424,5.16,2110.1,2109.5,7.11027]
[1625181805773,15.15,2110.1,2109.5,7.11027]
[1625181805875,20.16,2110.1,2109.5,7.11027]
[1625181808313,34.6,2109.9,2109.2,0.00756388]
[1625181808415,18.932,2109.8,2109.2,0.00756388]
[1625181808514,43.942,2109.8,2109.2,0.00756388]
[1625181808671,0.15,2109.7,2109.2,0.00756388]
[1625181810316,7.11153,2109.6,2109.2,0.00756388]
[1625181810419,22.11153,2109.6,2109.2,0.00756388]
[1625181810517,0.15,2109.5,2109.2,0.00756388]
[1625181811463,7.26079,2109.8,2109.2,0.00756388]
[1625181811562,7.11079,2109.8,2109.2,0.00756388]
[1625181811665,7.26079,2109.8,2109.2,0.00756388]
[1625181812166,10.1208,2110.0,2109.2,0.00756388]
[1625181812463,17.23051,2110.0,2109.2,7.11700388]
[1625181812665,17.23051,2110.0,2109.2,0.00756388]
[1625181814237,22.24051,2110.0,2109.2,0.00756388]
[1625181814438,22.24051,2110.0,2109.2,7.11721388]
[1625181814941,15.15,2109.9,2109.2,0.00756388]
[1625181815043,20.0,2109.8,2109.2,3.88e-06]
[1625181815190,15.1,2109.7,2109.2,3.88e-06]
[1625181815294,15.25,2109.7,2109.2,3.88e-06]
[1625181815462,0.1,2109.6,2109.2,3.88e-06]
[1625181815563,7.11147,2109.5,2109.2,3.88e-06]
[1625181815717,8.4228,2109.3,2109.2,3.88e-06]
[1625181815812,23.4228,2109.3,2109.2,3.88e-06]
[1625181815910,28.5828,2109.3,2109.2,3.88e-06]
[1625181816062,28.6228,2109.3,2109.2,3.88e-06]
[1625181816164,0.00599612,2109.1,2108.7,0.00812864]
[1625181816359,0.15,2109.0,2108.7,0.00812864]
[1625181817462,7.26292,2109.0,2108.7,0.00812864]
[1625181817567,12.27292,2109.0,2108.7,0.00812864]
[1625181819281,5.16,2109.0,2108.7,0.00812864]
[1625181819729,0.15,2109.0,2108.7,0.00812864]
[1625181819913,5.16,2109.0,2108.7,0.00812864]
[1625181820265,0.15,2109.0,2108.7,0.00812864]
[1625181820365,12.27283,2109.0,2108.7,0.00812864]
[1625181820468,7.26283,2109.0,2108.7,0.00812864]
[1625181820562,12.27283,2109.0,2108.7,0.00812864]
[1625181825416,34.55,2108.9,2108.2,0.00886186]
[1625181825518,0.04260263,2108.8,2108.2,0.00886186]
[1625181825621,34.5,2108.7,2107.7,22.62096047]
[1625181825771,15.02918918,2108.6,2107.7,0.00980047]
[1625181825872,15.12918918,2108.6,2107.7,0.00980047]
[1625181825968,0.15,2108.5,2107.7,0.00980047]
[1625181826067,0.02497626,2108.4,2107.7,0.00980047]
[1625181826223,0.15,2108.3,2107.7,0.00980047]
[1625181826318,3.8301,2108.3,2107.7,0.00980047]
[1625181826518,8.8401,2108.3,2107.7,0.00980047]
[1625181826707,3.8301,2108.3,2107.7,0.00980047]
[1625181826853,8.8401,2108.3,2107.7,0.00980047]
[1625181826954,3.8301,2108.3,2107.7,0.00980047]
[1625181827053,8.8401,2108.3,2107.7,0.00980047]
[1625181827156,23.8401,2108.3,2107.7,0.00980047]
[1625181827455,7.11581,2108.1,2107.7,0.00980047]
[1625181827559,12.12581,2108.1,2107.7,0.00980047]
[1625181828714,5.01,2108.1,2107.7,0.00980047]